{"text_format":"3","workbook":"xlsx","n_sheets":1,"sheets":["Proposition"],"not_rendered":{"defined_names":20},"read":"whole","date_system":"1900"}

{"sheet":"Proposition","index":0,"n_rows":41,"n_cols":8,"rows_kept":41,"merged":[[1,1,3,1],[1,4,1,7],[2,4,2,7],[3,5,3,7],[33,4,33,5],[34,4,36,5],[37,4,37,5],[38,4,38,5],[39,4,39,5],[40,4,40,5]]}
[]
[null,"VOTRE LOGO ICI",null,null,"PROPOSITION DE CONSTRUCTION"]
[{"$nulls":4},"The Refurbished Home | 89 Pacific Ave, San Francisco, CA 78901"]
[{"$nulls":4},"P (123) 456-7890","F (123) 456-7891"]
[]
[null,"CLIENT",null,null,"QUANTITÉ","DESCRIPTION","PRIX UNITAIRE","MONTANT"]
[null,"Maria Sullivan",null,null,10,"Cloison sèche",{"v":165,"d":"165.00 €"},{"$f":"IFERROR(LineItems[[#This Row],[QUANTITÉ]]*LineItems[[#This Row],[PRIX UNITAIRE]], \"\")","v":{"v":1650,"d":"1,650.00 €"}}]
[null,"N° DU DEVIS",null,null,21,"Contreplaqué",{"v":40,"d":"40.00 €"},{"$f":"IFERROR(LineItems[[#This Row],[QUANTITÉ]]*LineItems[[#This Row],[PRIX UNITAIRE]], \"\")","v":{"v":840,"d":"840.00 €"}}]
[null,"C-1234",null,null,5,"Jointures en bois",{"v":10.5,"d":"10.50 €"},{"$f":"IFERROR(LineItems[[#This Row],[QUANTITÉ]]*LineItems[[#This Row],[PRIX UNITAIRE]], \"\")","v":{"v":52.5,"d":"52.50 €"}}]
[null,"DATE",null,null,164,"Vis de 10 pouces",{"v":2.75,"d":"2.75 €"},{"$f":"IFERROR(LineItems[[#This Row],[QUANTITÉ]]*LineItems[[#This Row],[PRIX UNITAIRE]], \"\")","v":{"v":451,"d":"451.00 €"}}]
[null,{"$f":"TODAY()","v":"2023-03-23"},null,null,6,"Pomme de douche",{"v":12,"d":"12.00 €"},{"$f":"IFERROR(LineItems[[#This Row],[QUANTITÉ]]*LineItems[[#This Row],[PRIX UNITAIRE]], \"\")","v":{"v":72,"d":"72.00 €"}}]
[null,"ADRESSE",null,null,18,"Carreaux de douche",{"v":5.5,"d":"5.50 €"},{"$f":"IFERROR(LineItems[[#This Row],[QUANTITÉ]]*LineItems[[#This Row],[PRIX UNITAIRE]], \"\")","v":{"v":99,"d":"99.00 €"}}]
[null,"123 Avenue A",null,null,1,"Miroir au-dessus du lavabo",{"v":25,"d":"25.00 €"},{"$f":"IFERROR(LineItems[[#This Row],[QUANTITÉ]]*LineItems[[#This Row],[PRIX UNITAIRE]], \"\")","v":{"v":25,"d":"25.00 €"}}]
[null,"CODE POSTAL/VILLE/PAYS",{"$nulls":5},{"$f":"IFERROR(LineItems[[#This Row],[QUANTITÉ]]*LineItems[[#This Row],[PRIX UNITAIRE]], \"\")","v":{"v":0,"d":"0.00 €"}}]
[null,"Burbank, CA 54321",{"$nulls":5},{"$f":"IFERROR(LineItems[[#This Row],[QUANTITÉ]]*LineItems[[#This Row],[PRIX UNITAIRE]], \"\")","v":{"v":0,"d":"0.00 €"}}]
[null,"TÉLÉPHONE",{"$nulls":5},{"$f":"IFERROR(LineItems[[#This Row],[QUANTITÉ]]*LineItems[[#This Row],[PRIX UNITAIRE]], \"\")","v":{"v":0,"d":"0.00 €"}}]
[null,"(502) 555-0123",{"$nulls":5},{"$f":"IFERROR(LineItems[[#This Row],[QUANTITÉ]]*LineItems[[#This Row],[PRIX UNITAIRE]], \"\")","v":{"v":0,"d":"0.00 €"}}]
[null,"E-MAIL",{"$nulls":5},{"$f":"IFERROR(LineItems[[#This Row],[QUANTITÉ]]*LineItems[[#This Row],[PRIX UNITAIRE]], \"\")","v":{"v":0,"d":"0.00 €"}}]
[null,"maria@contoso.com",{"$nulls":5},{"$f":"IFERROR(LineItems[[#This Row],[QUANTITÉ]]*LineItems[[#This Row],[PRIX UNITAIRE]], \"\")","v":{"v":0,"d":"0.00 €"}}]
[{"$nulls":7},{"$f":"IFERROR(LineItems[[#This Row],[QUANTITÉ]]*LineItems[[#This Row],[PRIX UNITAIRE]], \"\")","v":{"v":0,"d":"0.00 €"}}]
[{"$nulls":7},{"$f":"IFERROR(LineItems[[#This Row],[QUANTITÉ]]*LineItems[[#This Row],[PRIX UNITAIRE]], \"\")","v":{"v":0,"d":"0.00 €"}}]
[null,"COMMERCIAL",{"$nulls":5},{"$f":"IFERROR(LineItems[[#This Row],[QUANTITÉ]]*LineItems[[#This Row],[PRIX UNITAIRE]], \"\")","v":{"v":0,"d":"0.00 €"}}]
[null,"Josko Lucic",{"$nulls":5},{"$f":"IFERROR(LineItems[[#This Row],[QUANTITÉ]]*LineItems[[#This Row],[PRIX UNITAIRE]], \"\")","v":{"v":0,"d":"0.00 €"}}]
[null,"PROJET",{"$nulls":5},{"$f":"IFERROR(LineItems[[#This Row],[QUANTITÉ]]*LineItems[[#This Row],[PRIX UNITAIRE]], \"\")","v":{"v":0,"d":"0.00 €"}}]
[null,"Rénovation de la salle de bain",{"$nulls":5},{"$f":"IFERROR(LineItems[[#This Row],[QUANTITÉ]]*LineItems[[#This Row],[PRIX UNITAIRE]], \"\")","v":{"v":0,"d":"0.00 €"}}]
[null,"PRÉPARÉ(E) PAR :",{"$nulls":5},{"$f":"IFERROR(LineItems[[#This Row],[QUANTITÉ]]*LineItems[[#This Row],[PRIX UNITAIRE]], \"\")","v":{"v":0,"d":"0.00 €"}}]
[null,"Josko Lucic",{"$nulls":5},{"$f":"IFERROR(LineItems[[#This Row],[QUANTITÉ]]*LineItems[[#This Row],[PRIX UNITAIRE]], \"\")","v":{"v":0,"d":"0.00 €"}}]
[{"$nulls":7},{"$f":"IFERROR(LineItems[[#This Row],[QUANTITÉ]]*LineItems[[#This Row],[PRIX UNITAIRE]], \"\")","v":{"v":0,"d":"0.00 €"}}]
[{"$nulls":7},{"$f":"IFERROR(LineItems[[#This Row],[QUANTITÉ]]*LineItems[[#This Row],[PRIX UNITAIRE]], \"\")","v":{"v":0,"d":"0.00 €"}}]
[null,"ATTENTION",{"$nulls":5},{"$f":"IFERROR(LineItems[[#This Row],[QUANTITÉ]]*LineItems[[#This Row],[PRIX UNITAIRE]], \"\")","v":{"v":0,"d":"0.00 €"}}]
[null,"Maria Sullivan",{"$nulls":5},{"$f":"IFERROR(LineItems[[#This Row],[QUANTITÉ]]*LineItems[[#This Row],[PRIX UNITAIRE]], \"\")","v":{"v":0,"d":"0.00 €"}}]
[null,"MODALITÉS DE PAIEMENT",{"$nulls":5},{"$f":"IFERROR(LineItems[[#This Row],[QUANTITÉ]]*LineItems[[#This Row],[PRIX UNITAIRE]], \"\")","v":{"v":0,"d":"0.00 €"}}]
[null,"30 jours nets",{"$nulls":4},"SOUS-TOTAL",{"$f":"SUBTOTAL(109,LineItems[MONTANT])","v":{"v":3189.5,"d":"3,189.50 €"}}]
[null,"DATE D’ÉCHÉANCE",null,null,"CETTE PROPOSITION INCLUT LES CONDITIONS SUIVANTES :",null,"TAUX TVA ",{"v":0.0775,"d":"7.75%"}]
[null,{"$f":"TODAY()+30","v":"2023-04-22"},null,null,"Entrez les conditions ici.",null,"TVA ",{"$f":"IFERROR(Sous.total*TuuxTva, \"\")","v":{"v":247.18625,"d":"247.19 €"}}]
[{"$nulls":6},"AUTRES "]
[{"$nulls":6},"TOTAL ",{"$f":"IFERROR(Sous.total+H35+Autres, \"\")","v":{"v":3436.68625,"d":"3,436.69 €"}}]
[]
[{"$nulls":4},"SIGNEZ CI-DESSOUS POUR ACCEPTER LE DEVIS :"]
[]
[{"$nulls":4},"REPRÉSENTANT AUTORISÉ",null,null,"DATE"]